bitfinex/quotes_SOLUSD_20240827
["timestamp","ask_amount","ask_price","bid_price","bid_amount"]
[1724754141177,1.34605547,154.56,154.51,6.4719]
[1724754142078,1.34605547,154.59,154.54,6.4708]
[1724754142273,1.34605547,154.59,154.52,16.1789]
[1724754142476,1.34605547,154.59,154.53,6.4708]
[1724754143154,60.12136306,154.58,154.42,53.77870759]
[1724754143355,60.12136306,154.58,154.48,6.4729]
[1724754144155,60.12136306,154.58,154.52,6.4716]
[1724754144156,1.34605547,154.58,154.52,6.4716]
[1724754144360,12.79037079,154.65,154.53,7.76525626]
[1724754144361,1.34605547,154.57,154.53,7.76525626]
[1724754144559,1.34605547,154.61,154.53,7.76525626]
[1724754144763,1.34605547,154.6,154.53,7.76525626]
[1724754144954,1.34605547,154.6,154.55,16.1752]
[1724754145151,1.34605547,154.63,154.55,22.6451]
[1724754145384,20.0,154.6,154.48,16.1824]
[1724754145569,1.34605547,154.59,154.48,16.1824]
[1724754145881,6.4715,154.53,154.46,6.4737]
[1724754146061,6.4715,154.53,154.47,6.4736]
[1724754146383,6.4721,154.51,154.45,22.6606]
[1724754146557,1.34605547,154.5,154.45,16.1861]
[1724754146877,6.4715,154.53,154.46,6.4737]
[1724754147058,1.34605547,154.52,154.46,6.4737]
[1724754147256,1.34605547,154.51,154.46,7.76826223]
[1724754147467,6.4718,154.52,154.46,7.76826223]
[1724754147676,1.34605547,154.51,154.46,6.4737]
[1724754148359,6.4718,154.52,154.46,6.4737]
[1724754148558,1.34605547,154.51,154.46,1.29482211]
[1724754148769,1.34605547,154.51,154.42,16.1894]
[1724754148770,6.4726,154.5,154.43,1.29463447]
[1724754149262,7.81815547,154.51,154.44,6.4749]
[1724754149460,1.34605547,154.5,154.45,1.29463438]
[1724754149882,1.34605547,154.5,154.44,6.4749]
[1724754150061,7.81865547,154.5,154.44,6.4749]
[1724754150261,6.4721,154.51,154.45,6.4745]
[1724754150474,1.34605547,154.5,154.46,1.29463548]
[1724754151291,58.77530759,154.55,154.48,6.4732]
[1724754151292,1.34605547,154.54,154.48,6.4732]
[1724754151588,1.34605547,154.58,154.49,1.29440039]
[1724754151762,16.1708,154.6,154.49,1.29440039]
[1724754151763,1.34605547,154.57,154.49,1.29440039]
[1724754151973,16.1708,154.6,154.49,1.29440039]
[1724754152163,6.4699,154.57,154.51,6.472]
[1724754152473,6.4716,154.53,154.46,22.6592]
[1724754152684,6.4721,154.51,154.46,16.1852]
[1724754152979,1.34605547,154.55,154.46,16.1852]
[1724754153191,1.34605547,154.54,154.46,16.1852]
[1724754153674,6.4717,154.52,154.46,22.6589]
[1724754153872,6.4716,154.52,154.46,22.6592]
[1724754154479,6.4721,154.51,154.46,16.1852]
[1724754154679,74.94890759,154.58,154.46,16.1852]
[1724754155280,74.94890759,154.58,154.43,16.1883]
[1724754155281,16.1759,154.55,154.43,16.1883]
[1724754155691,16.1759,154.55,154.44,6.4749]
[1724754155692,6.4728,154.5,154.44,6.4749]
[1724754157501,1.34605547,154.54,154.48,22.6562]
[1724754157671,1.34605547,154.57,154.49,1.29434257]
[1724754157995,46.34605547,154.57,154.45,16.1862]
[1724754158692,20.0,154.56,154.45,16.1862]
[1724754158900,1.34605547,154.55,154.47,6.4736]
[1724754159076,1.34605547,154.54,154.48,1.2944308]
[1724754159607,1.34605547,154.55,154.48,1.2944308]
[1724754159788,1.34605547,154.54,154.48,7.7677308]
[1724754159996,21.34605547,154.57,154.48,7.7677308]
[1724754160296,21.34605547,154.57,154.48,1.2944308]
[1724754160483,21.34605547,154.57,154.48,1.29434615]
[1724754161380,6.4712,154.53,154.48,1.29434615]
[1724754161797,1.34605547,154.57,154.48,1.29434615]
[1724754161979,6.4707,154.55,154.49,6.4728]
[1724754162289,7.81565547,154.57,154.51,6.4717]
[1724754162472,1.34605547,154.6,154.52,1.29405469]
[1724754162671,1.34605547,154.6,154.51,16.1792]
[1724754162672,1.34605547,154.6,154.49,32.24194853]
[1724754162871,1.34605547,154.63,154.53,16.1773]
[1724754163278,6.4691,154.58,154.53,22.6484]
[1724754163486,6.4691,154.58,154.53,16.1773]
[1724754164090,6.4695,154.57,154.52,6.4715]
[1724754164291,6.4695,154.57,154.51,6.472]
[1724754164601,6.4692,154.58,154.52,6.4716]
[1724754164976,6.4695,154.57,154.52,6.4716]
[1724754165376,6.4695,154.57,154.51,6.472]
[1724754165572,1.34605547,154.56,154.48,6.4733]
[1724754165801,32.24194853,154.58,154.47,38.1087]
[1724754165983,1.34605547,154.57,154.47,38.1087]
[1724754166182,6.4712,154.53,154.47,44.5821]
[1724754166387,6.4709,154.54,154.48,6.4732]
[1724754167901,1.34605547,154.53,154.47,21.9247]
[1724754168075,6.4717,154.52,154.47,21.9247]
[1724754168273,1.34605547,154.54,154.48,1.2944269]
[1724754168510,6.4717,154.52,154.47,21.9247]
[1724754169007,16.1762,154.55,154.47,21.9247]
[1724754169184,1.34605547,154.54,154.47,21.9247]
[1724754169505,6.4721,154.51,154.47,21.9247]
[1724754170586,1.34605547,154.55,154.48,1.29446712]
[1724754170779,1.34605547,154.57,154.48,1.29446712]
[1724754171891,7.81575547,154.57,154.51,6.4716]
[1724754172097,1.34605547,154.57,154.5,16.1803]
[1724754172300,1.34605547,154.57,154.5,22.6527]
[1724754172605,6.4703,154.55,154.51,1.29422136]
[1724754172993,6.4703,154.55,154.5,16.1803]
[1724754173306,6.4716,154.52,154.47,21.9247]
[1724754173498,17.51995547,154.57,154.47,21.9247]
[1724754173998,6.4701,154.56,154.47,38.1081]
[1724754174312,1.34605547,154.55,154.47,38.1081]
[1724754174482,1.34605547,154.55,154.5,6.4724]
[1724754174684,7.81645547,154.55,154.5,6.4724]
[1724754174883,6.4704,154.55,154.5,6.4724]
[1724754176015,6.47,154.56,154.5,6.4724]
[1724754176309,1.34605547,154.55,154.5,6.4724]
[1724754178207,6.47,154.56,154.5,6.4724]
[1724754178505,7.81655547,154.55,154.49,22.6543]
[1724754179517,1.34605547,154.55,154.49,22.6543]
[1724754179686,1.34605547,154.58,154.49,22.6543]
[1724754180013,1.34605547,154.57,154.49,22.6543]
[1724754180617,1.34605547,154.57,154.5,6.4724]
[1724754180790,1.34605547,154.56,154.5,6.4724]
[1724754180994,1.34605547,154.58,154.5,6.4724]
[1724754181209,1.34605547,154.57,154.5,6.4724]
[1724754181905,32.36743853,154.6,154.5,6.4724]
[1724754183114,1.34605547,154.59,154.5,6.4724]
[1724754183605,6.47,154.56,154.51,7.76605368]
[1724754183910,1.34605547,154.59,154.5,6.4724]
[1724754184098,6.4707,154.55,154.49,22.6541]
[1724754184613,7.81505547,154.59,154.53,6.4711]
[1724754184788,1.34605547,154.61,154.56,6.4698]
[1724754184996,7.81385547,154.61,154.57,1.29374305]
[1724754185205,6.4678,154.61,154.57,1.29374305]
[1724754185510,6.467,154.63,154.58,7.76274305]
[1724754185815,33.36871038,154.68,154.58,7.76274305]
[1724754185816,1.34605547,154.68,154.59,32.343]
[1724754186024,6.4647,154.69,154.63,16.1674]
[1724754186202,48.40624853,154.74,154.67,22.9924]
[1724754186203,1.12618442,154.74,154.67,22.9924]
[1724754186408,23.22138556,154.79,154.67,22.9924]
[1724754186409,20.0,154.77,154.67,22.9924]
[1724754186719,6.4637,154.71,154.67,22.9924]
[1724754187228,6.4633,154.72,154.67,22.9924]
[1724754187403,1.34605547,154.71,154.67,22.9924]
[1724754187822,1.34605547,154.72,154.67,22.9924]
[1724754188025,1.34605547,154.72,154.68,1.29280779]
[1724754188724,6.4628,154.73,154.68,1.29280779]
[1724754188927,1.34605547,154.75,154.68,17.45490779]
[1724754189234,52.24194853,154.73,154.67,16.5219]
[1724754189409,32.24194853,154.7,154.67,16.5219]
[1724754189606,7.81055547,154.69,154.67,16.5219]
[1724754190705,7.81055547,154.69,154.62,6.0175]
[1724754190706,1.34605547,154.69,154.62,6.0175]
[1724754190922,32.24194853,154.67,154.62,6.0175]
[1724754191228,1.34605547,154.66,154.62,6.0175]
[1724754191729,7.81185547,154.66,154.62,6.0175]
[1724754191913,1.34605547,154.69,154.63,1.29339557]
[1724754192315,20.12549,154.74,154.63,1.29339557]
[1724754192316,32.24194853,154.74,154.63,1.29339557]
[1724754192618,1.34605547,154.73,154.66,6.4655]
[1724754192821,6.4634,154.72,154.67,1.29281173]
[1724754193038,1.34605547,154.71,154.65,22.6313]
[1724754193823,1.34605547,154.72,154.66,1.29284439]
[1724754194023,1.34605547,154.72,154.66,7.75854439]
[1724754194422,7.80905547,154.73,154.66,7.75854439]
[1724754195014,6.4634,154.72,154.66,7.75854439]
[1724754195534,1.34605547,154.73,154.66,1.29284439]
[1724754195715,8.08545236,154.77,154.71,6.4637]
[1724754196032,1.34605547,154.79,154.72,6.6356]
[1724754196619,6.4608,154.78,154.72,13.0987]
[1724754196935,1.34605547,154.77,154.72,13.0987]
[1724754197143,1.34605547,154.78,154.72,13.0987]
[1724754197311,7.80645547,154.79,154.73,6.4628]
[1724754198310,1.34605547,154.78,154.73,6.4628]
[1724754198829,1.34605547,154.78,154.72,6.6356]
[1724754199033,7.80615547,154.8,154.74,22.6179]
[1724754199237,1.34605547,154.79,154.74,16.1559]
[1724754200034,7.80645547,154.79,154.74,16.1559]
[1724754200331,32.24194853,154.78,154.72,6.6356]
[1724754200546,6.4616,154.76,154.72,6.6356]
[1724754200835,1.34605547,154.75,154.72,6.6356]
[1724754201130,6.4616,154.76,154.72,6.6356]
[1724754201335,1.34605547,154.75,154.72,6.6356]
[1724754202126,7.80805547,154.75,154.72,6.6356]
[1724754202637,6.4624,154.74,154.68,22.627]
[1724754202835,1.34605547,154.73,154.68,22.627]
[1724754203716,1.34605547,154.73,154.67,21.4369]
[1724754203924,7.80935547,154.72,154.67,21.4369]
[1724754204225,6.4629,154.73,154.67,27.9022]
[1724754204614,6.4629,154.73,154.68,1.29271955]
[1724754204814,1.34605547,154.74,154.69,16.1604]
[1724754205225,1.34605547,154.74,154.7,6.464]
[1724754205621,1.34605547,154.74,154.71,6.4636]
[1724754205821,1.34605547,154.74,154.69,16.1604]
[1724754206238,1.34605547,154.75,154.69,16.1604]
[1724754206419,1.34605547,154.8,154.7,1.2924451]
[1724754206628,1.34605547,154.79,154.73,6.4628]
[1724754206839,1.34605547,154.79,154.74,6.4621]
[1724754208922,1.34605547,154.82,154.75,17.44644105]
[1724754209124,1.34605547,154.82,154.78,6.4607]
[1724754209632,7.80515547,154.82,154.76,6.4615]
[1724754209929,6.4596,154.81,154.75,22.6162]
[1724754210130,1.34605547,154.8,154.75,22.6162]
[1724754210335,1.34605547,154.79,154.75,22.6162]
[1724754210845,1.34605547,154.79,154.75,16.1542]
[1724754211137,1.34605547,154.79,154.75,22.6161]
[1724754211443,1.34605547,154.8,154.75,22.6161]
[1724754211621,1.34605547,154.79,154.75,22.6161]
[1724754211820,7.80665547,154.79,154.72,22.6208]
[1724754212178,7.80665547,154.79,154.72,16.158]
[1724754213226,1.34605547,154.79,154.73,1.29237079]
[1724754213425,7.80595547,154.8,154.73,1.29237079]
[1724754213923,1.34605547,154.79,154.74,6.4623]
[1724754214125,1.34605547,154.79,154.72,16.158]
[1724754214126,6.4608,154.78,154.72,22.6209]
[1724754214323,1.34605547,154.79,154.72,16.158]
[1724754214543,1.34605547,154.83,154.75,16.1541]
[1724754214750,1.34605547,154.82,154.75,16.1541]
[1724754215041,1.34605547,154.85,154.77,22.5903]
[1724754215228,1.34605547,154.85,154.78,1.29171824]
[1724754215421,1.34605547,154.85,154.77,22.5903]
[1724754215945,1.34605547,154.86,154.77,22.5903]
[1724754216245,1.34605547,154.85,154.77,22.5903]
[1724754216749,1.34605547,154.85,154.82,22.606]
[1724754216921,1.34605547,154.85,154.82,16.147]
[1724754217640,1.34605547,154.86,154.83,6.4586]
[1724754217842,1.34605547,154.86,154.84,6.4581]
[1724754218030,0.7950631,154.87,154.83,1.23768174]
[1724754218233,2.14111857,154.87,154.83,7.69628174]
[1724754218546,0.7950631,154.87,154.83,6.4586]
[1724754218925,0.7950631,154.87,154.85,6.4575]
[1724754219123,0.7950631,154.87,154.86,6.4574]
[1724754226358,0.7950631,154.87,154.85,6.4577]
[1724754226550,0.7950631,154.87,154.81,22.6075]
[1724754226730,1.34605547,154.86,154.82,6.459]
[1724754227170,1.34605547,154.85,154.82,6.459]
[1724754227645,1.34605547,154.85,154.81,22.6078]
[1724754228154,1.34605547,154.86,154.81,22.6078]
[1724754228358,7.2520631,154.87,154.81,22.6078]
[1724754228359,1.34605547,154.85,154.81,22.6078]
[1724754229458,1.34605547,154.86,154.81,22.6078]
[1724754229661,7.2520631,154.87,154.81,22.6078]
[1724754229662,1.34605547,154.85,154.81,22.6078]
[1724754230461,0.7950631,154.87,154.84,6.4582]
[1724754230634,0.7950631,154.87,154.83,16.1461]
[1724754231039,0.7950631,154.87,154.84,1.29141052]
[1724754231767,0.7950631,154.87,154.85,6.4577]
[1724754231941,0.7950631,154.87,154.83,16.1461]
[1724754232142,0.7950631,154.87,154.85,16.1438]
[1724754232353,0.7950631,154.87,154.86,1.2912774]
[1724754233159,0.7950631,154.87,154.86,7.7486774]
[1724754233345,0.7950631,154.87,154.86,6.4574]
[1724754233961,0.7950631,154.87,154.85,16.1438]
[1724754237050,0.7950631,154.87,154.83,6.4586]
[1724754238256,0.7950631,154.87,154.84,6.4581]
[1724754239357,0.7950631,154.87,154.84,6.4582]
[1724754239550,0.7950631,154.87,154.82,16.1475]
[1724754239761,1.34605547,154.86,154.82,16.1475]
[1724754239945,1.34605547,154.85,154.79,16.1504]
[1724754240155,6.4585,154.84,154.79,16.1504]
[1724754240351,6.4596,154.81,154.75,22.6165]
[1724754240672,1.34605547,154.83,154.72,64.55794853]
[1724754240875,7.80385547,154.85,154.77,38.7427]
[1724754241171,1.34605547,154.85,154.78,1.29174421]
[1724754241354,0.7950631,154.87,154.82,22.6066]
[1724754241551,2.14111857,154.87,154.82,22.6066]
[1724754241762,2.14111857,154.87,154.83,6.4586]
[1724754242272,2.14111857,154.87,154.82,16.1477]
[1724754242273,2.14111857,154.87,154.77,80.57702157]
[1724754242465,0.7950631,154.87,154.84,16.1451]
[1724754243848,2.14111857,154.87,154.84,16.1451]
[1724754244850,0.7950631,154.87,154.84,16.1451]
[1724754245048,0.7950631,154.87,154.84,22.6032]
[1724754245277,0.7950631,154.87,154.85,7.7490737]
[1724754245453,0.7950631,154.87,154.85,1.2914737]
[1724754245658,0.7950631,154.87,154.86,6.4574]
[1724754246953,0.7950631,154.87,154.84,16.1451]
[1724754247186,0.7950631,154.87,154.81,32.2971]
[1724754247187,0.7950631,154.87,154.82,6.4587]
[1724754247350,2.14111857,154.87,154.82,6.4587]
[1724754247681,6.4574,154.86,154.81,16.1484]
[1724754247972,7.80385547,154.85,154.79,6.4602]
[1724754248757,0.12549,154.86,154.8,6.4598]
[1724754248758,1.34605547,154.84,154.8,6.4598]
[1724754248956,1.34605547,154.85,154.8,6.4598]
[1724754249152,7.80425547,154.85,154.78,16.1514]
[1724754249382,6.4582,154.84,154.78,16.1514]
[1724754249560,46.34605547,154.83,154.76,6.4612]
[1724754249880,7.80525547,154.82,154.76,6.4612]
[1724754250185,32.24310983,154.81,154.73,6.4698]
[1724754250480,32.24310983,154.81,154.69,6.4641]
[1724754250481,32.11761983,154.78,154.69,6.4641]
[1724754250658,46.34605547,154.77,154.7,6.464]
[1724754250970,1.34605547,154.76,154.7,6.464]
[1724754251149,1.34605547,154.76,154.68,22.6314]
[1724754251150,0.12549,154.75,154.68,16.1616]
[1724754251365,6.4633,154.72,154.65,6.4658]
[1724754251672,6.4645,154.69,154.64,16.1658]
[1724754251863,1.34605547,154.71,154.66,6.4657]
[1724754252254,1.34605547,154.7,154.64,22.6321]
[1724754252454,52.81015547,154.7,154.64,16.1658]
[1724754254764,7.81015547,154.7,154.64,16.1658]
[1724754255259,6.4649,154.68,154.62,15.1406]
[1724754255462,1.34605547,154.67,154.62,6.4674]
[1724754255683,7.81145547,154.67,154.6,22.6383]
[1724754256183,7.81145547,154.67,154.61,6.4678]
[1724754257359,6.4658,154.66,154.6,16.1704]
[1724754257565,1.34605547,154.65,154.6,16.1704]
[1724754257860,1.34605547,154.64,154.6,16.1704]
[1724754258063,1.34605547,154.64,154.6,22.6386]
[1724754258383,20.0,154.67,154.6,16.1704]
[1724754258384,1.34605547,154.66,154.6,16.1704]
[1724754259087,1.34605547,154.68,154.64,16.166]
[1724754259684,1.34605547,154.68,154.58,16.0193]
[1724754259685,1.34605547,154.67,154.58,16.0193]
[1724754259864,6.4666,154.64,154.58,16.0193]
[1724754260064,1.34605547,154.63,154.58,22.488]
[1724754260788,1.34605547,154.63,154.59,6.4685]
[1724754260985,1.34605547,154.65,154.59,6.4685]
[1724754261283,1.34605547,154.64,154.59,6.4685]
[1724754261484,6.4672,154.63,154.58,16.0193]
[1724754261690,1.34605547,154.62,154.58,22.4883]
[1724754261986,7.81225547,154.65,154.58,22.4883]
[1724754262198,1.34605547,154.64,154.59,6.4686]
[1724754266263,1.34605547,154.64,154.6,6.4682]
[1724754266471,1.34605547,154.67,154.62,6.4674]
[1724754267483,1.34605547,154.67,154.61,6.4676]
[1724754267484,7.81155547,154.67,154.61,6.4676]
[1724754267805,7.81155547,154.67,154.58,16.0193]
[1724754267806,6.4676,154.62,154.58,16.0193]
[1724754268090,1.34605547,154.61,154.59,16.1717]
[1724754268293,25.76902911,154.65,154.53,15.2064]
[1724754268294,21.34605547,154.64,154.55,22.5196]
[1724754268476,20.0,154.61,154.55,16.1756]
[1724754268682,1.34605547,154.6,154.55,16.1756]
[1724754269073,1.34605547,154.6,154.52,16.1789]
[1724754269274,20.0,154.59,154.55,6.4703]
[1724754269484,1.34605547,154.58,154.54,6.4707]
[1724754269787,1.34605547,154.6,154.55,1.29417031]
[1724754269988,1.34605547,154.6,154.54,16.1769]
[1724754270167,1.34605547,154.6,154.55,1.29389009]
[1724754270374,20.0,154.66,154.57,16.1736]
[1724754270604,1.34605547,154.65,154.58,1.29356309]
[1724754270772,1.34605547,154.67,154.62,6.467]
[1724754271392,1.34605547,154.69,154.63,17.4603443]
[1724754271890,1.34605547,154.69,154.63,22.634]
[1724754272066,20.0,154.68,154.63,16.167]
[1724754272268,20.0,154.68,154.59,16.1716]
[1724754272269,7.81155547,154.67,154.59,16.1716]
[1724754272479,45.76902911,154.66,154.59,16.1716]
[1724754272689,1.34605547,154.65,154.59,16.1716]
[1724754272886,7.3227495,154.7,154.52,15.8362]
[1724754272887,45.76902911,154.62,154.52,15.8362]
[1724754273083,1.34605547,154.61,154.52,15.8362]
[1724754273290,1.34605547,154.6,154.53,1.29395316]
[1724754273477,1.34605547,154.63,154.56,16.1748]
[1724754273680,1.34605547,154.63,154.58,6.4687]
[1724754273997,1.34605547,154.63,154.57,7.76301993]
[1724754274176,1.34605547,154.63,154.57,1.29381993]
[1724754275197,7.81305547,154.63,154.56,22.6447]
[1724754275391,71.59289,154.62,154.56,22.6447]
[1724754275573,1.34605547,154.61,154.56,22.6447]
[1724754275774,1.34605547,154.6,154.56,22.6447]
[1724754275973,1.34605547,154.63,154.57,6.4694]
[1724754277498,1.34605547,154.63,154.56,16.1748]
[1724754277499,1.34605547,154.63,154.58,1.29374705]
[1724754277793,1.34605547,154.62,154.56,16.1748]
[1724754278176,1.34605547,154.64,154.56,16.1748]
[1724754278377,1.34605547,154.64,154.58,6.469]
[1724754278577,1.34605547,154.64,154.59,6.4685]
[1724754278801,1.34605547,154.64,154.6,16.1705]
[1724754279097,1.34605547,154.66,154.6,16.1705]
[1724754279474,1.34605547,154.66,154.61,6.4678]
[1724754279775,1.34605547,154.66,154.61,1.29343327]
[1724754279975,1.34605547,154.69,154.61,1.29343327]
[1724754280902,1.34605547,154.69,154.64,6.4662]
[1724754281997,1.34605547,154.69,154.65,6.466]
[1724754282216,1.34605547,154.69,154.66,6.4657]
[1724754282505,26.4636,154.72,154.66,6.4657]
[1724754282506,1.34605547,154.71,154.66,6.4657]
[1724754282798,1.34605547,154.7,154.66,6.4657]
[1724754283189,1.34605547,154.7,154.65,1.2930823]
[1724754283190,1.34605547,154.7,154.67,6.4653]
[1724754283603,1.34605547,154.71,154.67,6.4653]
[1724754283911,1.34605547,154.7,154.67,6.4653]
[1724754284210,7.80895547,154.73,154.67,6.4653]
[1724754285095,26.4636,154.72,154.65,22.6304]
[1724754285292,1.34605547,154.71,154.66,6.4657]
[1724754285587,1.34605547,154.7,154.66,6.4657]
[1724754286204,1.34605547,154.71,154.67,6.4651]
[1724754286610,1.34605547,154.72,154.66,1.24018166]
[1724754286795,1.34605547,154.73,154.67,16.1627]
[1724754287713,1.34605547,154.74,154.69,6.4642]
[1724754288010,1.34605547,154.73,154.69,6.4642]
[1724754288598,45.76902911,154.72,154.63,16.1667]
[1724754288792,25.76902911,154.68,154.58,6.469]
[1724754288991,6.4661,154.66,154.56,47.82652911]
[1724754289307,6.4691,154.58,154.56,22.0575]
[1724754289507,6.4683,154.6,154.54,6.4707]
[1724754289716,1.34605547,154.59,154.52,6.2255]
[1724754289896,1.34605547,154.59,154.54,6.4707]
[1724754290103,1.34605547,154.61,154.55,6.4703]
[1724754290297,1.34605547,154.6,154.55,6.4703]
[1724754290620,6.4677,154.62,154.55,6.4703]
[1724754290814,3.5282,154.67,154.57,25.76902911]
[1724754290992,3.5282,154.67,154.59,16.1712]
[1724754290993,6.4654,154.67,154.59,16.1712]
[1724754291192,45.76902911,154.68,154.52,38.5823]
[1724754291518,6.466,154.66,154.59,6.4687]
[1724754291694,1.34605547,154.65,154.59,6.4687]
[1724754291892,1.34605547,154.65,154.58,25.76902911]
[1724754292095,1.34605547,154.67,154.58,25.76902911]
[1724754292690,1.34605547,154.67,154.62,6.4673]
[1724754292891,1.34605547,154.67,154.63,1.2932458]
[1724754293120,1.34605547,154.68,154.63,1.2932458]
[1724754293286,1.34605547,154.68,154.63,7.7601458]
[1724754293489,1.34605547,154.7,154.66,6.4657]
[1724754293712,1.34605547,154.7,154.64,25.76902911]
[1724754294087,1.34605547,154.7,154.65,16.1649]
[1724754294286,21.34605547,154.7,154.62,29.0319]
[1724754294487,1.34605547,154.69,154.64,16.1663]
[1724754294691,7.80975547,154.71,154.64,16.1663]
[1724754294926,1.34605547,154.7,154.64,22.6328]
[1724754295227,6.4647,154.69,154.62,29.0317]
[1724754295396,1.34605547,154.68,154.62,29.0317]
[1724754295597,7.81125547,154.68,154.62,22.5646]
[1724754295797,6.4646,154.69,154.62,29.032]
[1724754296111,1.34605547,154.68,154.62,22.9745]
[1724754296291,7.81125547,154.68,154.62,16.5071]
[1724754297011,6.4659,154.66,154.62,16.5071]
[1724754297212,1.34605547,154.65,154.6,6.4682]
[1724754297619,1.34605547,154.65,154.6,7.76157542]
[1724754298022,1.34605547,154.66,154.6,7.76157542]
[1724754298195,1.34605547,154.66,154.61,6.4677]
[1724754298717,1.34605547,154.69,154.61,6.4677]
[1724754298896,1.34605547,154.69,154.62,1.29325967]
[1724754299098,1.34605547,154.69,154.61,6.4677]
[1724754299293,6.4649,154.68,154.61,6.4677]
[1724754299504,1.34605547,154.67,154.59,48.33775656]
[1724754299822,1.34605547,154.67,154.61,6.4678]
[1724754300019,1.34605547,154.67,154.62,1.29329293]
[1724754300190,21.34605547,154.69,154.62,49.62724949]
[1724754300394,21.34605547,154.71,154.65,16.1655]
[1724754300620,1.34605547,154.7,154.66,7.75866825]
[1724754300894,6.4638,154.71,154.65,48.33155656]
[1724754301094,6.4638,154.71,154.58,6.0016]
[1724754301095,1.34605547,154.7,154.63,6.4669]
[1724754301395,1.34605547,154.7,154.64,1.2931734]
[1724754301613,7.80925547,154.73,154.64,17.4591734]
[1724754301925,7.80925547,154.73,154.66,6.4654]
[1724754302267,7.80925547,154.73,154.65,32.16605656]
[1724754302268,1.34605547,154.73,154.68,6.4649]
[1724754302393,1.34605547,154.73,154.68,7.75773754]
[1724754302591,1.34605547,154.73,154.68,6.4649]
[1724754302901,20.0,154.79,154.69,17.45311518]
[1724754303204,3.5282,154.81,154.72,6.4632]
[1724754303205,1.34605547,154.78,154.72,6.4632]
[1724754303395,7.80685547,154.78,154.73,1.29235611]
[1724754304095,1.34605547,154.8,154.76,6.4614]
[1724754304316,1.34605547,154.82,154.75,7.7537749]
[1724754304500,7.80515547,154.82,154.75,7.7537749]
[1724754304701,1.34605547,154.82,154.76,6.4613]
[1724754305008,1.34605547,154.82,154.77,1.29210943]
[1724754305222,1.34605547,154.84,154.76,7.7534035]
[1724754305392,1.34605547,154.84,154.76,1.2921035]
[1724754305597,6.4591,154.82,154.76,6.4615]
[1724754305819,1.34605547,154.81,154.74,22.6177]
[1724754306614,1.34605547,154.81,154.75,6.4618]
[1724754307023,1.34605547,154.81,154.76,6.4615]
[1724754307221,6.4587,154.83,154.77,17.44474152]
[1724754307222,1.34605547,154.83,154.77,17.44474152]
[1724754307422,1.34605547,154.84,154.77,17.44474152]
[1724754307723,0.7950631,154.87,154.77,32.53024152]
[1724754307925,20.0,154.86,154.78,6.6047]
[1724754308136,1.34605547,154.85,154.77,15.0855]
[1724754308313,20.0,154.84,154.75,6.4616]
[1724754308513,20.0,154.84,154.73,38.8184]
[1724754308514,6.462,154.75,154.69,22.6245]
[1724754308714,1.34605547,154.74,154.69,16.1604]
[1724754309225,1.34605547,154.76,154.73,6.4628]
[1724754309418,52.16605656,154.79,154.72,16.1579]
[1724754309419,1.34605547,154.78,154.72,16.1579]
[1724754309626,7.80685547,154.78,154.72,16.1579]
[1724754310149,6.4612,154.77,154.72,16.1579]
[1724754310437,7.80765547,154.76,154.69,22.6257]
[1724754310817,7.80765547,154.76,154.7,6.464]
[1724754311231,7.80765547,154.76,154.69,16.1612]
[1724754311424,7.80765547,154.76,154.69,22.6257]
[1724754311732,6.4621,154.75,154.69,16.1612]
[1724754311922,1.34605547,154.74,154.69,22.6253]
[1724754312125,1.47154547,154.76,154.69,22.6253]
[1724754312635,1.34605547,154.76,154.7,1.29265856]
[1724754313141,1.34605547,154.76,154.69,17.45372666]
[1724754313723,6.4634,154.72,154.68,22.6622]
[1724754313929,20.12549,154.75,154.65,16.1645]
[1724754314128,20.12549,154.73,154.64,16.6104]
[1724754314425,6.4649,154.69,154.61,16.1687]
[1724754314629,1.34605547,154.68,154.61,16.1687]
[1724754315036,1.34605547,154.68,154.63,6.4666]
[1724754315340,1.34605547,154.7,154.64,6.4664]
[1724754315751,7.81015547,154.7,154.63,6.467]
[1724754315960,7.81015547,154.7,154.62,32.16605656]
[1724754315961,20.0,154.8,154.68,32.16605656]
[1724754316439,20.0,154.8,154.71,16.1582]
[1724754316626,26.4602,154.8,154.73,6.4626]
[1724754317320,20.0,154.8,154.68,32.16605656]
[1724754317525,6.4603,154.79,154.72,6.4629]